Workbook

Sheet Two assets
B3: E(Rs) | C3: 8 | E3: sd(Rs) | F3: 15 | H3: rho | I3: 0.2
B4: E(Rb) | C4: 3 | E4: sd(Rb) | F4: 5
B11: Ws | C11: Wb | D11: E(Rp) | E11: SD(Rp)
B12: 0 | C12: =1-B12 -> 1 | D12: =B12*$C$3+C12*$C$4 -> 3 | E12: =SQRT(B12^2*$F$3^2+C12^2*$F$4^2+2*B12*C12*$I$3*$F$3*$F$4) -> 5
B13: 0.05 | C13: =1-B13 -> 0.95 | D13: =B13*$C$3+C13*$C$4 -> 3.25 | E13: 4.954795657
B14: 0.1 | C14: 0.9 | D14: 3.5 | E14: 5.019960159
B15: 0.15 | C15: 0.85 | D15: 3.75 | E15: 5.191338941
B16: 0.2 | C16: 0.8 | D16: 4 | E16: 5.458937626
B17: 0.25 | C17: 0.75 | D17: 4.25 | E17: 5.809475019
B18: 0.3 | C18: 0.7 | D18: 4.5 | E18: 6.228964601
B19: 0.35 | C19: 0.65 | D19: 4.75 | E19: 6.704476117
B20: 0.4 | C20: 0.6 | D20: 5 | E20: 7.224956747
B21: 0.45 | C21: 0.55 | D21: 5.25 | E21: 7.781388051
B22: 0.5 | C22: 0.5 | D22: 5.5 | E22: 8.366600265
B23: 0.55 | C23: 0.45 | D23: 5.75 | E23: 8.974965181
B24: 0.6 | C24: 0.4 | D24: 6 | E24: 9.602083107
B25: 0.65 | C25: 0.35 | D25: 6.25 | E25: 10.24451073
B26: 0.7 | C26: 0.3 | D26: 6.5 | E26: 10.89954127
B27: 0.75 | C27: 0.25 | D27: 6.75 | E27: 11.56503351
B28: 0.8 | C28: 0.2 | D28: 7 | E28: 12.23928102
B29: 0.85 | C29: 0.15 | D29: 7.25 | E29: 12.92091328
B30: 0.9 | C30: 0.1 | D30: 7.5 | E30: 13.60882067
B31: 0.95 | C31: 0.05 | D31: 7.75 | E31: 14.30209775
B32: 1 | C32: 0 | D32: 8 | E32: 15
B33: 1.05 | C33: -0.05 | D33: 8.25 | E33: 15.70191071
B34: 1.1 | C34: -0.1 | D34: 8.5 | E34: 16.40731544
B35: 1.15 | C35: -0.15 | D35: 8.75 | E35: 17.11578219
B36: 1.2 | C36: -0.2 | D36: 9 | E36: 17.8269459

Sheet Three assets
A4: E(Ra) | B4: 3 | D4: SD(Ra) | E4: 5 | G4: rho(Ra,Rb) | H4: 0
A5: E(Rb) | B5: 7 | D5: SD(Rb) | E5: 10 | G5: rho(Ra,Rc) | H5: 0
A6: E(Rc ) | B6: 13 | D6: SD(Rc) | E6: 18 | G6: rho(Rb,Rc) | H6: 0
B9: Wa | C9: Wb | D9: Wc | E9: E(Rp) | F9: SD(Rp)
B10: 1.000000007 | C10: 0 | D10: =1-B10-C10 -> -6.973094324e-09 | E10: =B10*$B$4+C10*$B$5+D10*$B$6 -> 2.99999993 | F10: =SQRT(B10^2*$E$4^2+C10^2*$E$5^2+D10^2*$E$6^2+2*B10*C10*$H$4*$E$4*$E$5+2*B10*D10*$H$5*$E$4*$E$6+2*C10*D10*$H$6*$E$5*$E$6) -> 5.000000035
B11: 0.8749991902 | C11: 0.1250008163 | D11: =1-B11-C11 -> -6.515689793e-09 | E11: 3.5000032 | F11: =SQRT(B11^2*$E$4^2+C11^2*$E$5^2+D11^2*$E$6^2+2*B11*C11*$H$4*$E$4*$E$5+2*B11*D11*$H$5*$E$4*$E$6+2*C11*D11*$H$6*$E$5*$E$6) -> 4.55006703
B12: 0.8012927207 | C12: 0.1645115755 | D12: 0.03419570372 | E12: 4.000003339 | F12: 4.374588508
B13: 0.7299179169 | C13: 0.2001368112 | D13: 0.06994527187 | E13: 4.499999964 | F13: 4.348574129
B14: 0.6585426419 | C14: 0.2357622712 | D14: 0.1056950868 | E14: 4.999999953 | F14: 4.474359773
B15: 0.5871673565 | C15: 0.271387723 | D15: =1-B15-C15 -> 0.1414449205 | E15: =B15*$B$4+C15*$B$5+D15*$B$6 -> 5.500000097 | F15: =SQRT(B15^2*$E$4^2+C15^2*$E$5^2+D15^2*$E$6^2+2*B15*C15*$H$4*$E$4*$E$5+2*B15*D15*$H$5*$E$4*$E$6+2*C15*D15*$H$6*$E$5*$E$6) -> 4.73987625
B16: 0.5157915169 | C16: 0.3070134682 | D16: 0.1771950149 | E16: =B16*$B$4+C16*$B$5+D16*$B$6 -> 6.000004022 | F16: =SQRT(B16^2*$E$4^2+C16^2*$E$5^2+D16^2*$E$6^2+2*B16*C16*$H$4*$E$4*$E$5+2*B16*D16*$H$5*$E$4*$E$6+2*C16*D16*$H$6*$E$5*$E$6) -> 5.12344854
B17: 0.4444162032 | C17: 0.342638952 | D17: =1-B17-C17 -> 0.2129448448 | E17: =B17*$B$4+C17*$B$5+D17*$B$6 -> 6.500004256 | F17: =SQRT(B17^2*$E$4^2+C17^2*$E$5^2+D17^2*$E$6^2+2*B17*C17*$H$4*$E$4*$E$5+2*B17*D17*$H$5*$E$4*$E$6+2*C17*D17*$H$6*$E$5*$E$6) -> 5.600868989
B18: 0.3730408583 | C18: 0.3782644421 | D18: 0.2486946996 | E18: 7.000004765 | F18: 6.150323507
B19: 0.3016662614 | C19: 0.4138895658 | D19: 0.2844441728 | E19: 7.499999991 | F19: 6.754248332
B20: 0.230290977 | C20: 0.4495150413 | D20: 0.3201939817 | E20: 7.999999982 | F20: 7.399328471
B21: 0.1589157068 | C21: 0.4851404957 | D21: 0.3559437975 | E21: 8.499999958 | F21: 8.075703368
B22: 0.0875404086 | C22: 0.5207659911 | D22: 0.3916936003 | E22: 8.999999968 | F22: 8.776140429
B23: 0.01948263269 | C23: 0.5508622497 | D23: 0.4296551176 | E23: 9.500000175 | F23: 9.495575372
B24: 0 | C24: 0.4999999963 | D24: 0.5000000037 | E24: 10.00000002 | F24: 10.29563018
B25: 0 | C25: 0.4166666646 | D25: 0.5833333354 | E25: 10.50000001 | F25: 11.29650883
B26: 0 | C26: 0.3333333321 | D26: 0.6666666679 | E26: 11.00000001 | F26: 12.45436115
B27: 0 | C27: 0.2499999989 | D27: 0.7500000011 | E27: 11.50000001 | F27: 13.72953024
B28: 0 | C28: 0.1666655667 | D28: 0.8333344333 | E28: 12.0000066 | F28: 15.09232703
B29: 0 | C29: 0.0833322 | D29: 0.9166678 | E29: 12.5000068 | F29: 16.52105017
B30: 0 | C30: 0 | D30: 1 | E30: 13 | F30: 18

Sheet Sheet3
